Workbook

Sheet Cálculo de s²
B3: A) Cuando las varianzas poblacionales SON CONOCIDAS:
G4: Población 1 | H4: Población 2
F5: Varianza =
F6: Desv estandar =
F7: n =
G9: =IF(AND(G7>0,H7>0),IF(G5>0,G5,G6^2)/G7+IF(H5>0,H5,H6^2)/H7,"") ->  | I9: =IF(ISNUMBER(G9),SQRT(G9),"") -> 
B12: B) Cuando las varianzas poblacionales SON DESCONOCIDAS:
G13: Muestra 1 | H13: Muestra 2
C14: 0 | F14: Varianza =
F15: Desv estandar =
F16: n =
G17: =IF(C14=1,IF(AND(G16>0,H16>0),IF(G14>0,(G16-1)*G14+(H16-1)*H14,(G16-1)*G15^2+(H16-1)*H15^2)/(G16+H16-2)*(1/G16+1/H16),""),"") ->  | I17: =IF(ISNUMBER(G17),SQRT(G17),"") -> 
C20: Suponiendo que son diferentes: | G20: =IF(C14=2,IF(AND(G16>0,H16>0),IF(G14>0,G14/G16+H14/H16,G15^2/G16+H15^2/H16),""),"") ->  | I20: =IF(ISNUMBER(G20),SQRT(G20),"") -> 

Sheet Cálculo de g
D3: Muestra 1 | E3: Muestra 2
C4: Varianza =
C5: Desv estandar =
C6: n =
C8: g = | D8: =IF(AND(D6>0,E6>0),IF(AND(D4>0,E4>0),(D4/D6+E4/E6)^2/((D4/D6)^2/(D6+1)+(E4/E6)^2/(E6+1))-2,(D5^2/D6+E5^2/E6)^2/((D5^2/D6)^2/(D6+1)+(E5^2/E6)^2/(E6+1))-2),"") -> 

Sheet IC Media 1
A3: Por el Teorema del Límite Central, usarmos la distribución Normal | J3: Usaremos la distribución t de Student, suponiendo población normal
C5: Población
B6: Varianza =
B7: O desv. Estándar = | C7: 10 | L7: Muestra
C8: Muestra | K8: Media = | L8: 790
B9: Media = | C9: 70 | K9: Varianza = | L9: 125
B10: n = | C10: 100 | K10: O la desv. Estándar =
B11: Nivel de confianza = | C11: 95 | D11: (en porcentaje) | K11: n = | L11: 9
K12: Nivel de confianza = | L12: 95 | M12: (en porcentaje)
C14: =IF(C10>0,IF(C6>0,SQRT(C6/C10),C7/SQRT(C10)),"") -> 1 | L14: =IF(L11>0,IF(L9>0,SQRT(L9/L11),L10/SQRT(L11)),"") -> 3.726779962
C16: =IF(C11<>0,NORMSINV(1-(1-C11/100)/2),"") -> 1.959963985 | L16: =IF(L12<>0,TINV(1-L12/100,(L11-1)),"") -> 2.306004133
B17: El intervalo de confianza del | C17: =C11/100 -> 0.95 | D17: =TEXT(C17*100,"#####.##") -> 95. | E17: =LEFT(D17,FIND(".",D17)-1) -> 95 | K17: El intervalo de confianza del | L17: =L12/100 -> 0.95 | M17: =TEXT(L17*100,"#####.##") -> 95. | N17: =LEFT(M17,FIND(".",M17)-1) -> 95
B18: =CONCATENATE(B17,E17,"% para μ es: ") -> El intervalo de confianza del 95% para μ es: | K18: =CONCATENATE(K17,N17,"% para μ es: ") -> El intervalo de confianza del 95% para μ es:
B20: =IF(C14>0,C9-C16*C14,"") -> 68.04003602 | C20: ≤ μ ≤ | D20: =IF(C14>0,C9+C16*C14,"") -> 71.95996398 | K20: =IF(L14>0,L8-L14*L16,"") -> 781.40603 | L20: ≤ μ ≤ | M20: =IF(L14>0,L8+L16*L14,"") -> 798.59397

Sheet IC Media 2
A3: Por el Teorema del Límite Central, usarmos la distribución Normal
C5: Población 1 | D5: Población 2
B6: Varianzas = | O6: Intervalo de confianza para el cociente de varianzas
B7: Desv. Est. = | Q7: =IF(AND(L11>0,M11>0),FINV(1-(1-L12/100)/2,M11-1,L11-1),"") -> 0.287877558
L8: Muestra 1 | M8: Muestra 2 | Q8: =IF(AND(L11>0,M11>0),FINV((1-L12/100)/2,M11-1,L11-1),"") -> 3.473699051
C9: Muestra 1 | D9: Muestra 2 | K9: Medias = | L9: 36300 | M9: 38100
B10: Medias = | K10: Varianzas, s² = | L10: =100^2 -> 10000 | M10: =150^2 -> 22500 | O10: =CONCATENATE($K$17,$N$17,"% para σ²1 / σ²2 es: ") -> El intervalo de confianza del 95% para σ²1 / σ²2 es:
B11: n = | K11: n = | L11: 12 | M11: 12
B12: Nivel de confianza = | K12: Nivel de confianza = | L12: 95 | P12: =IF(Q7>0,L10/M10*Q7,"") -> 0.1279455813 | Q12: ≤ σ²1 / σ²2 ≤ | R12: =IF(Q8>0,L10/M10*Q8,"") -> 1.543866245
L13: =IF(AND(L11>0,M11>0),((L10/L11+M10/M11)^2/((L10/L11)^2/(L11+1)+(M10/M11)^2/(M11+1)))-2,"") -> 20.64948454 | Q13: =IF(R12<>"",IF(AND(R12>=1,P12<1),1,0),"") -> 1
C14: =IF(AND(C6>0,D6>0,C11>0,D11>0),SQRT(C6/C11+D6/D11),IF(AND(C7>0,D7>0,C11>0,D11>0),SQRT(C7^2/C11+D7^2/D11),"")) ->  | L14: =IF(Q13=1,SQRT(((L11-1)*L10+(M11-1)*M10)/(L11+M11-2)*(1/L11+1/M11)),SQRT(L10/L11+M10/M11)) -> 52.04164999
C15: =IF(C12<>0,NORMSINV(1-(1-C12/100)/2),"") ->  | L15: =IF(Q13=1,TINV((1-L12/100),L11+M11-2),TINV((1-L12/100),INT(GLib2))) -> 2.073873058
B17: El intervalo de confianza del | C17: =C12/100 -> 0 | D17: =TEXT(C17*100,"#####.##") -> . | E17: =LEFT(D17,FIND(".",D17)-1) ->  | K17: El intervalo de confianza del | L17: =L12/100 -> 0.95 | M17: =TEXT(L17*100,"#####.##") -> 95. | N17: =LEFT(M17,FIND(".",M17)-1) -> 95
B18: =CONCATENATE(B17,E17,"% para μ1 – μ2 es: ") -> El intervalo de confianza del % para μ1 – μ2 es: | K18: =CONCATENATE($K$17,$N$17,"% para μ1 – μ2 es: ") -> El intervalo de confianza del 95% para μ1 – μ2 es:
B20: =IF(ISERROR((C10-D10)-C15*C14),"",(C10-D10)-C15*C14) ->  | C20: ≤ μ1 – μ2 ≤ | D20: =IF(ISERROR((C10-D10)+C15*C14),"",(C10-D10)+C15*C14) ->  | K20: =IF(ISERROR((L9-M9)-L15*L14),"",(L9-M9)-L15*L14) -> -1907.927776 | L20: ≤ μ1 – μ2 ≤ | M20: =IF(ISERROR((L9-M9)+L15*L14),"",(L9-M9)+L15*L14) -> -1692.072224

Sheet IC Proporción
C1: Datos de la muestra:
D3: Muestra 1 | E3: Muestra 2
C4: Tamaño = | D4: 40 | E4: 50
C5: Nro. casos o eventos = | D5: 10 | E5: 15
C6: Proporción muestral = | D6: =IF(ISERROR(D5/D4),"",D5/D4) -> 0.25 | E6: =IF(ISERROR(E5/E4),"",E5/E4) -> 0.3
C7: Nivel de confianza(en %) = | D7: 95 | E7: 2
D8: =NORMSINV(1-(1-D7/100)/2) -> 1.959963985
C9: El Intervalo de confianza del | D9: =D7 -> 95
D13: =IF(ISERROR(SQRT(D6*(1-D6)/D4)),"",SQRT(D6*(1-D6)/D4)) -> 0.06846531969 | I13: =IF(ISERROR(SQRT(D6*(1-D6)/D4+E6*(1-E6)/E4)),"",SQRT(D6*(1-D6)/D4+E6*(1-E6)/E4)) -> 0.09427353817
C14: =CONCATENATE(C9,D9,"% para π es:") -> El Intervalo de confianza del 95% para π es: | I14: =CONCATENATE(C9,D7,"% para π1 - π2 es: ") -> El Intervalo de confianza del 95% para π1 - π2 es:
G16: =CHOOSE(E7,C14,I14) -> El Intervalo de confianza del 95% para π1 - π2 es:
H18: Lím. Inferior | J18: Lím. Superior
H19: =IF(ISERROR(CHOOSE($E$7,D6-D8*D13,(D6-E6)-D8*I13)),"",CHOOSE($E$7,D6-D8*D13,(D6-E6)-D8*I13)) -> -0.2347727395 | J19: =IF(ISERROR(CHOOSE($E$7,D6+D8*D13,(D6-E6)+D8*I13)),"",CHOOSE($E$7,D6+D8*D13,(D6-E6)+D8*I13)) -> 0.1347727395

Sheet Datos pareados
A1: Antes (X) | B1: Depués (Y) | D1: D
D2: =IF(AND(A2<>"",B2<>""),A2-B2,"") -> 
F3: Nivel de confianza:
G4: =IF(G3<>"",TINV((1-G3/100),COUNT(Difer)-1),"") -> 
F6: Estadísticas muestrales de D:
H8: =IF(D2<>"",AVERAGE(Difer),"") -> 
H10: =IF(D2<>"",VAR(Difer),"") -> 
H12: =IF(H10<>"",SQRT(H10),"") -> 
H14: =IF(H8<>"",H10/COUNT(Difer),"") -> 
H16: =IF(H14<>"",SQRT(H14),"") -> 
G18: El intervalo de confianza del | H18: =TEXT(G3,"##.##") -> . | I18: % para la media es:
G19: =CONCATENATE(G18,H18,I18) -> El intervalo de confianza del .% para la media es:
G21: =IF(H16<>"",H8-G4*H16,"") ->  | I21: =IF(H16<>"",H8+G4*H16,"") -> 
